[Event "GEO-ch U20 Boys 2020"]
[Site "Tbilisi"]
[Date "2020.08.11"]
[Round "6.6"]
[White "Naqopia, Giorgi"]
[Black "Kavkasidze, Ilia"]
[Result "1/2-1/2"]
[ECO "D59"]
[WhiteElo "1806"]
[BlackElo "1768"]
[Annotator "NA RC"]
[PlyCount "76"]
[EventDate "2020.08.06"]
[EventType "tourn"]
[EventCountry "GEO"]
[SourceTitle "playchess.com"]
[Source "ChessBase"]
[SourceQuality "1"]
[TimeControl "40/5400+30:1800+30"]

{[%evp 17,76,0,7,0,7,11,16,16,11,0,0,0,19,8,12,6,38,7,20,14,14,0,0,0,12,-8,29,0,56,31,102,68,105,28,68,62,78,68,76,68,75,75,87,87,95,94,87,87,92,81,84,85,85,70,77,0,0,0,0,0,0]} 1. d4 {[%emt 0:02:56]} d5 {[%emt 0:00:00]} 2. c4 {[%emt 0:00:03]} e6 {[%emt 0:00:27]} 3. Nf3 {[%emt 0:00:05]} Nf6 {[%emt 0:00:39]} 4. Nc3 {[%emt 0:00:04]} Be7 {[%emt 0:00:45]} 5. Bg5 {[%emt 0:00:41]} O-O {[%emt 0:00:25]} 6. e3 {[%emt 0:00:46]} h6 {[%emt 0:00:05]} 7. Bh4 {[%emt 0:00:05]} b6 {[%emt 0:01:10]} 8. cxd5 {[%emt 0:00:16]} Nxd5 {[%emt 0:04:18]} 9. Bxe7 {[%emt 0:00:31]} Qxe7 {[%emt 0:01:49]} 10. Nxd5 {[%emt 0:04:37]} exd5 {[%emt 0:00:28]} 11. Rc1 {[%emt 0:00:19]} Bb7 {[%emt 0:06:22] D59: Queen's Gambit Declined: Tartakower Defence: Main line (8 cxd5 Nxd5).} 12. Be2 {[%emt 0:00:20]} c5 {[%emt 0:05:26]} 13. dxc5 {[%emt 0:00:04]} bxc5 {[%emt 0:00:45]} 14. Qb3 {[%emt 0:00:05] [#]} Rd8 $146 {[%emt 0:12:58]} ({Predecessor:} 14... Rc8 15. O-O Nc6 16. Rfd1 Rab8 17. Bf1 Nd8 18. Qa3 Rc7 19. Ne1 Ne6 20. Nd3 Ba8 {½-½ (47) Ovsejevitsch,S-Kosevich Simferopol 1991}) 15. O-O {[%emt 0:02:18]} Ba6 {[%emt 0:04:37]} 16. Rfe1 {[%emt 0:10:24]} Qd6 {[%emt 0:05:17]} 17. Qa3 {[%emt 0:03:19]} Bxe2 {[%emt 0:03:44]} 18. Rxe2 {[%emt 0:00:03]} Nd7 {[%emt 0:02:31]} 19. Nd4 {[%emt 0:00:27]} Rac8 {[%emt 0:05:48]} 20. Rec2 {[%emt 0:00:34]} Qb6 {[%emt 0:02:33]} 21. b3 {[%emt 0:03:44]} g6 {[%emt 0:01:35]} 22. h3 {[%emt 0:04:18]} a5 {[%emt 0:01:59]} (22... Ne5 $11) 23. Ne2 {[%emt 0:00:19]} Ra8 {[%emt 0:05:49]} ({Better is} 23... Rc6 $14) 24. Nc3 {[%emt 0:01:58]} d4 {[%emt 0:01:13] [#]} 25. Na4 {[%emt 0:00:14]} ({Better is} 25. exd4 $1 $16 Qb4 26. Qxb4 cxb4 27. Nd5) 25... Qb4 {[%emt 0:00:32]} 26. Qxb4 {[%emt 0:00:42]} axb4 {[%emt 0:00:44]} 27. exd4 {[%emt 0:00:17]} cxd4 {[%emt 0:00:24]} 28. Rd2 {[%emt 0:00:05]} Nf6 {[%emt 0:07:51]} 29. Rcd1 {[%emt 0:02:16]} Ne4 {[%emt 0:00:31]} 30. Rxd4 {[%emt 0:00:23]} Rxd4 {[%emt 0:00:01]} 31. Rxd4 {[%emt 0:00:01]} Nc3 {[%emt 0:00:02]} 32. Rxb4 {[%emt 0:01:56]} Nxa2 {[%emt 0:00:14]} 33. Rb7 {[%emt 0:00:11]} Kg7 {[%emt 0:00:58]} 34. Nb6 {[%emt 0:01:30]} Rd8 {[%emt 0:03:03]} 35. Nd7 {[%emt 0:00:03]} Re8 {[%emt 0:03:27]} 36. b4 {[%emt 0:00:20]} ({Better is} 36. Kf1 $16) 36... Re7 {[%emt 0:00:31]} 37. b5 {[%emt 0:00:08]} Nc3 {[%emt 0:00:44]} 38. b6 {[%emt 0:00:31]} Nd5 $11 {[%emt 0:00:13]} 1/2-1/2

[Event "GEO-ch U20 Boys 2020"]
[Site "Tbilisi"]
[Date "2020.08.12"]
[Round "7.1"]
[White "Petriashvili, Nikoloz"]
[Black "Kacharava, Nikolozi"]
[Result "1/2-1/2"]
[ECO "D27"]
[WhiteElo "2423"]
[BlackElo "2437"]
[Annotator "ChessBase"]
[PlyCount "165"]
[EventDate "2020.08.06"]
[EventType "tourn"]
[EventCountry "GEO"]
[SourceTitle "playchess.com"]
[Source "ChessBase"]
[SourceQuality "1"]
[TimeControl "40/5400+30:1800+30"]

1. d4 {[%emt 0:00:00]} d5 {[%emt 0:00:01]} 2. c4 {[%emt 0:00:00]} dxc4 {[%emt 0:00:34]} 3. Nf3 {[%emt 0:00:00]} Nf6 {[%emt 0:00:30]} 4. e3 {[%emt 0:00:00]} e6 {[%emt 0:00:29]} 5. Bxc4 {[%emt 0:00:00]} c5 {[%emt 0:00:35]} 6. O-O {[%emt 0:06:21]} a6 {[%emt 0:00:42]} 7. b3 {[%emt 0:00:03]} Nc6 {[%emt 0:01:00]} 8. Bb2 {[%emt 0:00:02]} cxd4 {[%emt 0:00:40]} 9. Nxd4 {[%emt 0:00:04]} Bd7 {[%emt 0:00:41]} 10. Nd2 {[%emt 0:00:39]} Be7 {[%emt 0:01:02]} 11. N4f3 {[%emt 0:00:04]} O-O {[%emt 0:01:04]} 12. a3 {[%emt 0:00:04]} Qa5 {[%emt 0:07:58]} 13. b4 {[%emt 0:13:46]} Qh5 {[%emt 0:08:05]} 14. e4 {[%emt 0:05:08]} Rfd8 {[%emt 0:06:09]} 15. Qe2 {[%emt 0:09:08]} Na7 {[%emt 0:10:06]} 16. e5 {[%emt 0:07:08]} Nd5 {[%emt 0:02:24]} 17. Bxd5 {[%emt 0:00:50]} exd5 {[%emt 0:00:39]} 18. Qe3 {[%emt 0:00:02]} a5 {[%emt 0:06:52]} 19. Qb6 {[%emt 0:07:05]} Qg6 {[%emt 0:07:08]} 20. bxa5 {[%emt 0:06:23]} Nc6 {[%emt 0:06:47]} 21. Rfc1 {[%emt 0:03:11]} Nxa5 {[%emt 0:06:32]} 22. Bd4 {[%emt 0:07:04]} Nc4 {[%emt 0:06:28]} 23. Nxc4 {[%emt 0:03:33]} dxc4 {[%emt 0:00:09]} 24. Qxg6 {[%emt 0:00:21]} hxg6 {[%emt 0:00:26]} 25. Rxc4 {[%emt 0:00:05]} Rxa3 {[%emt 0:02:18]} 26. Rxa3 {[%emt 0:01:51]} Bxa3 {[%emt 0:00:04]} 27. Bb6 {[%emt 0:00:15]} Re8 {[%emt 0:01:35]} 28. h3 {[%emt 0:06:24]} Bc6 {[%emt 0:05:47]} 29. Bc7 {[%emt 0:00:22]} Bxf3 {[%emt 0:02:34]} 30. gxf3 {[%emt 0:00:05]} Rc8 {[%emt 0:00:27]} 31. Ra4 {[%emt 0:00:22]} Bc5 {[%emt 0:01:26]} 32. Bd6 {[%emt 0:01:51]} Bxd6 {[%emt 0:01:05]} 33. exd6 {[%emt 0:00:01]} Rd8 {[%emt 0:00:54]} 34. Rc4 {[%emt 0:01:25]} Rxd6 {[%emt 0:02:30]} 35. Rc8+ {[%emt 0:00:01]} Kh7 {[%emt 0:00:06]} 36. Rc7 {[%emt 0:00:01]} b5 {[%emt 0:02:34]} 37. Rb7 {[%emt 0:00:03]} Rf6 {[%emt 0:01:44]} 38. Rxb5 {[%emt 0:00:02]} Rxf3 {[%emt 0:00:07]} 39. Kg2 {[%emt 0:00:02]} Ra3 {[%emt 0:00:33]} 40. h4 {[%emt 0:00:25]} f6 {[%emt 0:01:57]} 41. f3 {[%emt 0:31:18]} Re3 {[%emt 0:30:25]} 42. Kg3 {[%emt 0:00:15]} Re2 {[%emt 0:00:49]} 43. Rc5 {[%emt 0:00:08]} Re5 {[%emt 0:01:09]} 44. Rc4 {[%emt 0:00:33]} Kh6 {[%emt 0:00:43]} 45. Rc8 {[%emt 0:00:27]} g5 {[%emt 0:00:40]} 46. Rc4 {[%emt 0:00:04]} Kg6 {[%emt 0:00:45]} 47. hxg5 {[%emt 0:00:06]} Rxg5+ {[%emt 0:00:11]} 48. Kf2 {[%emt 0:00:01]} Ra5 {[%emt 0:00:08]} 49. Rc7 {[%emt 0:00:09]} Kh6 {[%emt 0:00:05]} 50. Rf7 {[%emt 0:00:40]} Ra6 {[%emt 0:00:22]} 51. Kg3 {[%emt 0:02:24]} g5 {[%emt 0:00:17]} 52. Rf8 {[%emt 0:00:16]} Kg7 {[%emt 0:00:37]} 53. Rb8 {[%emt 0:00:06]} f5 {[%emt 0:01:07]} 54. Rc8 {[%emt 0:00:41]} Ra3 {[%emt 0:00:23]} 55. Kg2 {[%emt 0:00:26]} Kf6 {[%emt 0:01:15]} 56. Rc5 {[%emt 0:00:08]} Ke6 {[%emt 0:00:53]} 57. Rb5 {[%emt 0:00:06]} Rd3 {[%emt 0:00:27]} 58. Kf2 {[%emt 0:01:08]} Rd5 {[%emt 0:01:51]} 59. Rb2 {[%emt 0:00:43]} Ke5 {[%emt 0:00:40]} 60. Ra2 {[%emt 0:00:31]} f4 {[%emt 0:00:45]} 61. Ra4 {[%emt 0:00:42]} Kf5 {[%emt 0:01:00]} 62. Ra8 {[%emt 0:00:19]} Ke5 {[%emt 0:00:36]} 63. Ra4 {[%emt 0:00:02]} Rd2+ {[%emt 0:00:32]} 64. Kf1 {[%emt 0:00:26]} Rc2 {[%emt 0:01:04]} 65. Kg1 {[%emt 0:00:48]} Kf5 {[%emt 0:01:02]} 66. Ra8 {[%emt 0:00:29]} Ke5 {[%emt 0:00:19]} 67. Ra4 {[%emt 0:00:04]} Kd5 {[%emt 0:00:11]} 68. Kf1 {[%emt 0:01:07]} Rc4 {[%emt 0:00:23]} 69. Ra5+ {[%emt 0:00:10]} Rc5 {[%emt 0:00:06]} 70. Ra4 {[%emt 0:00:06]} Rc4 {[%emt 0:00:19]} 71. Ra5+ {[%emt 0:00:08]} Kd4 {[%emt 0:00:20]} 72. Rxg5 {[%emt 0:00:32]} Ke3 {[%emt 0:00:10]} 73. Ra5 {[%emt 0:00:18]} Rc3 {[%emt 0:00:28]} 74. Kg2 {[%emt 0:00:05]} Rc2+ {[%emt 0:00:07]} 75. Kf1 {[%emt 0:00:14]} Rf2+ {[%emt 0:00:23]} 76. Kg1 {[%emt 0:00:15]} Rd2 {[%emt 0:00:22]} 77. Kf1 {[%emt 0:00:07]} Rf2+ {[%emt 0:00:26]} 78. Kg1 {[%emt 0:00:02]} Rxf3 {[%emt 0:00:08]} 79. Ra3+ {[%emt 0:00:05]} Ke4 {[%emt 0:00:05]} 80. Ra4+ {[%emt 0:00:03]} Kf5 {[%emt 0:00:05]} 81. Kg2 {[%emt 0:00:19]} Rg3+ {[%emt 0:00:06]} 82. Kf2 {[%emt 0:00:06]} Kg4 {[%emt 0:00:12]} 83. Ra8 {[%emt 0:00:04]} 1/2-1/2

[Event "GEO-ch U20 Boys 2020"]
[Site "Tbilisi"]
[Date "2020.08.12"]
[Round "7.2"]
[White "Kukhaleishvili, Giorgi"]
[Black "Loladze, Andria"]
[Result "1-0"]
[ECO "B01"]
[WhiteElo "1801"]
[BlackElo "1794"]
[Annotator "NA"]
[PlyCount "65"]
[EventDate "2020.08.06"]
[EventType "tourn"]
[EventCountry "GEO"]
[SourceTitle "playchess.com"]
[Source "ChessBase"]
[SourceQuality "1"]
[TimeControl "40/5400+30:1800+30"]

{[%evp 8,51,68,39,71,67,59,74,62,64,116,39,95,29,52,51,56,54,49,42,58,0,-1,-1,90,32767,32767,32767,115,107,122,133,166,112,137,118,96,77,135,90,158,32767,32767,32767,32767,25]} 1. e4 {[%emt 0:00:00]} d5 {[%emt 0:01:08]} 2. exd5 {[%emt 0:00:00]} Qxd5 {[%emt 0:00:05]} 3. Nc3 {[%emt 0:00:00]} Qa5 {[%emt 0:00:05]} 4. d4 {[%emt 0:00:00]} Nf6 {[%emt 0:00:19]} 5. Nf3 {[%emt 0:00:00]} Bg4 {[%emt 0:00:21]} 6. h3 {[%emt 0:01:27]} Bh5 {[%emt 0:00:30]} 7. g4 {[%emt 0:07:15]} Bg6 {[%emt 0:00:12]} 8. Ne5 {[%emt 0:00:56]} c6 {[%emt 0:08:54]} 9. Bg2 {[%emt 0:05:34]} (9. h4 $16) 9... e6 {[%emt 0:09:04]} 10. O-O {[%emt 0:08:06]} Nbd7 {[%emt 0:29:07]} 11. Nxg6 {[%emt 0:05:13]} hxg6 {[%emt 0:00:18]} 12. Bf4 {[%emt 0:00:07]} O-O-O {[%emt 0:10:59]} 13. Qe2 {[%emt 0:20:29] B01: Scandinavian Defence.} Bb4 {[%emt 0:11:41] [#]} 14. Ne4 $146 {[%emt 0:07:28]} ({Predecessor:} 14. a3 Bxc3 15. bxc3 Qxc3 16. Rab1 Nd5 17. Bg3 g5 18. Rfd1 Nf4 19. Bxf4 gxf4 20. Rb3 Qa5 {½-½ (80) Perez Mitjans,O (2429)-Ortega Ruiz,J (2338) Azuqueca de Henares 2013}) 14... Nxe4 {[%emt 0:02:20]} 15. Qxe4 {[%emt 0:03:04]} Qb6 {[%emt 0:02:16]} (15... Nf6 $11 {keeps the balance.} 16. Qd3 Bd6 17. Bxd6 Rxd6) 16. c3 {[%emt 0:02:16]} Nf6 {[%emt 0:00:33]} 17. Qf3 {[%emt 0:00:07]} Be7 {[%emt 0:09:03]} 18. Rfe1 {[%emt 0:02:07]} Rd7 {[%emt 0:02:39]} 19. b4 {[%emt 0:01:30]} Rhd8 {[%emt 0:04:21]} (19... Nd5 $16) 20. a4 {[%emt 0:00:51]} a5 {[%emt 0:01:03]} 21. b5 {[%emt 0:10:05]} c5 {[%emt 0:00:30]} 22. Be5 {[%emt 0:03:20]} g5 {[%emt 0:01:27]} 23. Rac1 {[%emt 0:02:19]} Bd6 {[%emt 0:03:02]} 24. Bxf6 {[%emt 0:01:20]} gxf6 {[%emt 0:00:04]} 25. Qxf6 {[%emt 0:00:05]} Bf4 {[%emt 0:00:35] [#]} 26. Rc2 $11 {[%emt 0:00:40]} (26. Rcd1 $1 $16) 26... cxd4 {[%emt 0:01:03]} 27. cxd4+ {[%emt 0:00:07]} Kb8 {[%emt 0:00:12]} 28. d5 {[%emt 0:00:23]} Rd6 {[%emt 0:01:34]} 29. Qxf7 {[%emt 0:01:08]} exd5 {[%emt 0:00:32]} 30. Re7 {[%emt 0:00:36]} Qd4 {[%emt 0:00:31]} 31. Rxb7+ {[%emt 0:00:09]} Ka8 {[%emt 0:00:06]} 32. Rcc7 {[%emt 0:00:36]} Qa1+ {[%emt 0:00:55]} 33. Bf1 {[%emt 0:00:05]} 1-0

[Event "GEO-ch U20 Boys 2020"]
[Site "Tbilisi"]
[Date "2020.08.12"]
[Round "7.3"]
[White "Nemsadze, Daviti"]
[Black "Khodashneli, Shota"]
[Result "0-1"]
[ECO "A41"]
[WhiteElo "1771"]
[BlackElo "1940"]
[Annotator "ChessBase"]
[PlyCount "116"]
[EventDate "2020.08.06"]
[EventType "tourn"]
[EventCountry "GEO"]
[SourceTitle "playchess.com"]
[Source "ChessBase"]
[SourceQuality "1"]
[TimeControl "40/5400+30:1800+30"]

1. d4 {[%emt 0:01:27]} d6 {[%emt 0:00:00]} 2. Nf3 {[%emt 0:04:33]} Nf6 {[%emt 0:00:00]} 3. g3 {[%emt 0:00:15]} Nbd7 {[%emt 0:00:39]} 4. Bg2 {[%emt 0:01:45]} e5 {[%emt 0:00:19]} 5. c4 {[%emt 0:00:56]} c6 {[%emt 0:00:16]} 6. O-O {[%emt 0:07:03]} e4 {[%emt 0:08:12]} 7. Nfd2 {[%emt 0:01:50]} d5 {[%emt 0:00:16]} 8. cxd5 {[%emt 0:02:30]} cxd5 {[%emt 0:00:06]} 9. f3 {[%emt 0:08:59]} exf3 10. exf3 {[%emt 0:12:09]} Be7 {[%emt 0:02:25]} 11. Nc3 {[%emt 0:00:17]} O-O {[%emt 0:04:37]} 12. Re1 {[%emt 0:15:47]} Nb8 {[%emt 0:04:30]} 13. Nb3 {[%emt 0:01:49]} Nc6 {[%emt 0:00:20]} 14. f4 {[%emt 0:05:08]} Bf5 {[%emt 0:03:41]} 15. h3 {[%emt 0:01:33]} h5 {[%emt 0:00:51]} 16. a3 {[%emt 0:01:59]} Qd7 {[%emt 0:03:32]} 17. Kh2 {[%emt 0:00:24]} Rfe8 {[%emt 0:01:41]} 18. Be3 {[%emt 0:01:37]} Bd6 {[%emt 0:13:19]} 19. Nb5 {[%emt 0:08:02]} h4 {[%emt 0:02:28]} 20. Nxd6 {[%emt 0:00:16]} hxg3+ {[%emt 0:00:10]} 21. Kxg3 {[%emt 0:02:37]} Qxd6 {[%emt 0:00:10]} 22. Kh2 {[%emt 0:02:15]} Re7 {[%emt 0:09:10]} 23. Bd2 {[%emt 0:07:05]} Rae8 {[%emt 0:02:17]} 24. Rxe7 {[%emt 0:00:56]} Rxe7 {[%emt 0:00:07]} 25. Qf1 {[%emt 0:00:45]} Bc2 {[%emt 0:00:59]} 26. Nc1 {[%emt 0:01:54]} Ne4 {[%emt 0:00:41]} 27. Be3 {[%emt 0:01:46]} Ng3 {[%emt 0:04:11]} 28. Qf2 {[%emt 0:03:30]} Nf5 {[%emt 0:00:09]} 29. Bd2 {[%emt 0:00:47]} Be4 {[%emt 0:05:34]} 30. Ne2 {[%emt 0:00:26]} Bxg2 {[%emt 0:01:55]} 31. Kxg2 {[%emt 0:00:12]} Qg6+ {[%emt 0:05:50]} 32. Kh2 {[%emt 0:00:08]} Ncxd4 {[%emt 0:01:10]} 33. Nxd4 {[%emt 0:00:29]} Nxd4 {[%emt 0:00:02]} 34. Re1 {[%emt 0:02:41]} Rxe1 {[%emt 0:02:19]} 35. Bxe1 {[%emt 0:00:02]} Qc2 {[%emt 0:03:16]} 36. Qxc2 {[%emt 0:00:11]} Nxc2 {[%emt 0:00:01]} 37. Bd2 {[%emt 0:00:08]} Nd4 {[%emt 0:00:16]} 38. Kg2 {[%emt 0:00:30]} Kh7 {[%emt 0:03:51]} 39. Be3 {[%emt 0:00:43]} Nc6 {[%emt 0:00:02]} 40. Kf2 {[%emt 0:00:09]} Kg6 {[%emt 0:00:13]} 41. Ke2 {[%emt 0:30:52]} Kf5 {[%emt 0:32:53]} 42. Kf3 {[%emt 0:00:57]} a5 {[%emt 0:02:15]} 43. b3 {[%emt 0:02:00]} b5 {[%emt 0:00:15]} 44. a4 {[%emt 0:00:25]} bxa4 {[%emt 0:00:19]} 45. bxa4 {[%emt 0:00:01]} d4 {[%emt 0:00:28]} 46. Bd2 {[%emt 0:00:22]} Ke6 {[%emt 0:00:02]} 47. Ke4 {[%emt 0:00:10]} f5+ {[%emt 0:00:01]} 48. Kd3 {[%emt 0:00:52]} Kd5 {[%emt 0:00:04]} 49. h4 {[%emt 0:00:06]} Nb4+ {[%emt 0:02:36]} 50. Ke2 {[%emt 0:00:05]} Kc4 {[%emt 0:00:31]} 51. Be1 {[%emt 0:00:16]} g6 {[%emt 0:00:52]} 52. Kd2 {[%emt 0:00:10]} Nd3 {[%emt 0:00:23]} 53. Bg3 {[%emt 0:00:01]} Nc5 {[%emt 0:00:06]} 54. Kc2 {[%emt 0:00:10]} d3+ {[%emt 0:00:05]} 55. Kd1 {[%emt 0:00:03]} Nxa4 {[%emt 0:00:08]} 56. Be1 {[%emt 0:00:05]} Nc3+ {[%emt 0:00:04]} 57. Kd2 {[%emt 0:00:10]} Ne4+ {[%emt 0:00:08]} 58. Ke3 {[%emt 0:00:02]} d2 {[%emt 0:00:16]} 0-1

[Event "GEO-ch U20 Boys 2020"]
[Site "Tbilisi"]
[Date "2020.08.12"]
[Round "7.4"]
[White "Kilasonia, Lado"]
[Black "Naqopia, Giorgi"]
[Result "0-1"]
[ECO "B00"]
[WhiteElo "1390"]
[BlackElo "1806"]
[Annotator "NA RC"]
[PlyCount "50"]
[EventDate "2020.08.06"]
[EventType "tourn"]
[EventCountry "GEO"]
[SourceTitle "playchess.com"]
[Source "ChessBase"]
[SourceQuality "1"]
[TimeControl "40/5400+30:1800+30"]

{[%evp 17,50,75,293,178,210,193,200,145,351,45,12,-207,-206,-254,-182,-249,-241,-396,-412,-394,-342,-300,-321,-385,-393,-1515,-2051,-1881,-1845,-29980,-4245,-29989,-29982,-29991,-29979]} 1. e4 {[%emt 0:00:00]} Nc6 {[%emt 0:06:10]} 2. Nf3 {[%emt 0:00:00]} d5 {[%emt 0:00:11]} 3. exd5 {[%emt 0:00:00]} Qxd5 {[%emt 0:00:04]} 4. Nc3 {[%emt 0:00:00]} Qd8 {[%emt 0:02:08]} 5. d4 {[%emt 0:00:00]} Bg4 {[%emt 0:00:12]} 6. Bb5 {[%emt 0:01:22] B01: Scandinavian Defence.} e6 {[%emt 0:00:44]} 7. h3 {[%emt 0:00:39]} Bxf3 {[%emt 0:00:32]} 8. Qxf3 {[%emt 0:00:03]} Nge7 {[%emt 0:01:25]} 9. Bg5 {[%emt 0:04:30] [#]} Qd7 $2 $146 {[%emt 0:01:38]} (9... Qxd4 $14 10. Bxe7 {[%mdl 64] Pin} Qe5+ 11. Kf1 Kxe7) ({Predecessor:} 9... Qd6 10. O-O-O a6 11. Bxe7 Bxe7 12. Bxc6+ bxc6 13. Rhe1 O-O 14. Rd3 Rab8 15. Nd1 Rb5 {0-1 (22) Lomsky,R (1689)-Martinkova,M (1818) Tabor 2005}) 10. d5 {[%emt 0:02:15]} exd5 {[%emt 0:01:46] [#]} 11. O-O-O $1 {[%emt 0:01:01]} d4 {[%emt 0:09:03]} 12. Rhe1 {[%emt 0:11:26]} f6 $2 {[%emt 0:01:23]} (12... O-O-O $16 {was necessary.}) 13. Bxf6 $2 {[%emt 0:26:08]} (13. Ne2 $18 a6 14. Nxd4 (14. Rxd4 Qe6 $16) 14... axb5 15. Nxb5) 13... gxf6 {[%emt 0:00:05]} 14. Qxf6 $2 {[%emt 0:00:31] [#]} (14. Bc4 $14 Bg7 15. Nd5) 14... O-O-O $1 {[%emt 0:00:49]} 15. Bc4 {[%emt 0:08:11]} ({Of course not} 15. Bxc6 Nxc6 16. Ne4 Bb4 $19) 15... Qd6 {[%emt 0:01:53]} 16. Be6+ {[%emt 0:04:23]} (16. Qxd6 $17 {was worth a try.} Rxd6 17. Ne4) 16... Kb8 {[%emt 0:00:02]} 17. Nb5 $2 {[%emt 0:01:51]} (17. Ne4 {was necessary.} Qh2 18. Ng3) 17... Qc5 {[%emt 0:01:25]} 18. Kb1 {[%emt 0:06:36]} Bg7 {[%emt 0:04:07]} ({Less strong is} 18... Qxb5 19. Qxh8 Nd5 20. Bxd5 $17) 19. Qxg7 {[%emt 0:00:36]} Qxb5 {[%emt 0:00:04]} 20. f4 {[%emt 0:04:37]} Nd5 {[%emt 0:00:36]} 21. c4 $2 {[%emt 0:01:12]} (21. Bxd5 Qxd5 22. Qg5) 21... dxc3 {[%emt 0:00:18]} 22. b3 {[%emt 0:01:27]} Ncb4 {[%emt 0:01:32]} 23. Rd4 {[%emt 0:01:42]} c2+ {[%emt 0:01:39]} 24. Ka1 {[%emt 0:01:30]} Rhe8 {[%emt 0:01:28] Decoy} 25. f5 {[%emt 0:00:48]} Nd3 {[%emt 0:00:41]} 0-1

[Event "GEO-ch U20 Boys 2020"]
[Site "Tbilisi"]
[Date "2020.08.12"]
[Round "7.5"]
[White "Gongliashvili, Zurab"]
[Black "Akhvlediani, Irakli"]
[Result "1/2-1/2"]
[ECO "A40"]
[WhiteElo "1807"]
[BlackElo "2358"]
[Annotator "ChessBase"]
[PlyCount "137"]
[EventDate "2020.08.06"]
[EventType "tourn"]
[EventCountry "GEO"]
[SourceTitle "playchess.com"]
[Source "ChessBase"]
[SourceQuality "1"]
[TimeControl "40/5400+30:1800+30"]

1. d4 {[%emt 0:10:29]} g6 {[%emt 0:00:23]} 2. Nf3 {[%emt 0:00:08]} Bg7 {[%emt 0:00:22]} 3. c3 {[%emt 0:00:22]} d6 {[%emt 0:00:43]} 4. e4 {[%emt 0:00:35]} Nf6 {[%emt 0:03:59]} 5. Bd3 {[%emt 0:00:22]} O-O {[%emt 0:00:05]} 6. h3 {[%emt 0:00:13]} Nc6 {[%emt 0:00:15]} 7. Be3 {[%emt 0:00:34]} e5 {[%emt 0:00:21]} 8. Nbd2 {[%emt 0:00:37]} Nh5 {[%emt 0:01:08]} 9. g4 {[%emt 0:01:37]} Nf4 {[%emt 0:01:39]} 10. Bxf4 {[%emt 0:00:31]} exf4 {[%emt 0:00:03]} 11. Qc2 {[%emt 0:00:48]} Rb8 {[%emt 0:01:24]} 12. Kf1 {[%emt 0:19:45]} Ne7 {[%emt 0:07:54]} 13. Re1 {[%emt 0:03:47]} c5 {[%emt 0:00:35]} 14. e5 {[%emt 0:04:34]} cxd4 {[%emt 0:00:26]} 15. exd6 {[%emt 0:02:30]} Nc6 {[%emt 0:00:14]} 16. Ne4 {[%emt 0:01:49]} dxc3 {[%emt 0:00:11]} 17. bxc3 {[%emt 0:00:18]} Ne5 {[%emt 0:07:29]} 18. Nxe5 {[%emt 0:05:31]} Bxe5 {[%emt 0:00:02]} 19. Rd1 {[%emt 0:01:28]} Be6 {[%emt 0:06:57]} 20. c4 {[%emt 0:01:26]} b6 {[%emt 0:07:28]} 21. Be2 {[%emt 0:12:25]} Rc8 {[%emt 0:02:16]} 22. Kg2 {[%emt 0:05:02]} Kh8 {[%emt 0:13:46]} 23. h4 {[%emt 0:02:22]} f3+ {[%emt 0:21:25]} 24. Bxf3 {[%emt 0:00:41]} Bxc4 {[%emt 0:05:18]} 25. Qd2 {[%emt 0:02:37]} f6 {[%emt 0:03:11]} 26. Rhe1 {[%emt 0:02:45]} Qd7 {[%emt 0:03:06]} 27. g5 {[%emt 0:02:10]} Be6 {[%emt 0:03:09]} 28. gxf6 {[%emt 0:00:49]} Bh3+ {[%emt 0:00:34]} 29. Kg1 {[%emt 0:04:16]} Bg4 {[%emt 0:00:12]} 30. Qe3 {[%emt 0:02:43]} Rce8 {[%emt 0:01:01]} 31. Bxg4 {[%emt 0:02:09]} Qxg4+ {[%emt 0:00:03]} 32. Ng3 {[%emt 0:00:13]} Bxf6 {[%emt 0:07:19]} 33. Qxe8 {[%emt 0:00:13]} Rxe8 {[%emt 0:00:00]} 34. Rxe8+ {[%emt 0:00:07]} Kg7 {[%emt 0:00:03]} 35. Rde1 {[%emt 0:01:10]} Qd4 {[%emt 0:00:31]} 36. R8e7+ {[%emt 0:01:28]} Kh6 {[%emt 0:00:26]} 37. R7e6 {[%emt 0:00:33]} Kg7 {[%emt 0:00:28]} 38. h5 {[%emt 0:02:37]} Kf7 {[%emt 0:00:26]} 39. hxg6+ {[%emt 0:01:07]} hxg6 {[%emt 0:00:01]} 40. R1e2 {[%emt 0:04:11]} Qd1+ {[%emt 0:00:41]} 41. Kh2 {[%emt 0:30:05]} Qd5 {[%emt 0:30:06]} 42. R6e3 {[%emt 0:01:46]} Qxd6 {[%emt 0:00:10]} 43. Rf3 {[%emt 0:00:27]} Kg7 {[%emt 0:00:15]} 44. Kg2 {[%emt 0:00:19]} Be5 {[%emt 0:00:16]} 45. Re4 {[%emt 0:01:16]} Bxg3 {[%emt 0:00:36]} 46. fxg3 {[%emt 0:00:33]} Qd2+ {[%emt 0:00:07]} 47. Rf2 {[%emt 0:00:09]} Qd5 {[%emt 0:00:03]} 48. Rfe2 {[%emt 0:00:04]} b5 {[%emt 0:00:34]} 49. Kh2 {[%emt 0:00:54]} a5 {[%emt 0:00:47]} 50. Re5 {[%emt 0:00:22]} Qc4 {[%emt 0:00:15]} 51. R5e4 {[%emt 0:00:15]} Qd3 {[%emt 0:00:04]} 52. R4e3 {[%emt 0:00:39]} Qd1 {[%emt 0:00:06]} 53. Re7+ {[%emt 0:00:55]} Kh6 {[%emt 0:00:05]} 54. R7e5 {[%emt 0:00:08]} b4 {[%emt 0:00:16]} 55. Re1 {[%emt 0:00:22]} Qf3 {[%emt 0:00:17]} 56. R1e2 {[%emt 0:01:05]} a4 {[%emt 0:00:04]} 57. R5e3 {[%emt 0:00:35]} Qh5+ {[%emt 0:00:33]} 58. Kg1 {[%emt 0:00:19]} Qd5 {[%emt 0:00:02]} 59. Kh2 {[%emt 0:00:15]} Qd1 {[%emt 0:01:29]} 60. Kg2 {[%emt 0:00:40]} Qc1 {[%emt 0:01:37]} 61. Kf2 {[%emt 0:00:35]} Qh1 {[%emt 0:00:23]} 62. Re4 {[%emt 0:00:50]} Qc1 {[%emt 0:00:49]} 63. R4e3 {[%emt 0:00:30]} Qb1 {[%emt 0:00:52]} 64. Kg2 {[%emt 0:01:19]} b3 {[%emt 0:00:31]} 65. axb3 {[%emt 0:00:04]} a3 {[%emt 0:00:04]} 66. b4 {[%emt 0:00:14]} a2 {[%emt 0:00:08]} 67. Rxa2 {[%emt 0:00:04]} Qxa2+ {[%emt 0:00:04]} 68. Kf3 {[%emt 0:00:07]} Qf7+ {[%emt 0:00:14]} 69. Ke4 1/2-1/2